bitfinex-derivatives/quotes_SOLF0:USTF0_20240924
["timestamp","ask_amount","ask_price","bid_price","bid_amount"]
[1727188772122,3.4504,144.91,144.85,3.4514]
[1727188772323,3.46212181,144.96,144.85,3.4514]
[1727188772519,3.46212181,144.96,144.83,1.3447]
[1727188772520,23.83,144.94,144.83,1.3447]
[1727188772716,23.83,144.91,144.82,1.4275]
[1727188772913,23.83,144.94,144.82,1.4275]
[1727188773118,23.83,144.94,144.82,4.8797]
[1727188773428,23.83,144.94,144.82,1.4275]
[1727188773821,3.4508,144.89,144.84,3.4518]
[1727188774121,23.83,144.99,144.85,23.83]
[1727188774327,20.74,145.05,144.83,23.83]
[1727188774531,23.83,144.95,144.83,23.83]
[1727188774828,3.4504,144.91,144.86,3.4512]
[1727188775126,23.83,144.97,144.85,23.83]
[1727188775323,3.4498,144.93,144.85,23.83]
[1727188775911,27.19970856,144.97,144.85,23.83]
[1727188775912,3.4501,144.92,144.87,3.451]
[1727188776626,3.4496,144.94,144.85,23.83]
[1727188776823,23.83,145.0,144.88,23.83]
[1727188777036,3.4487,144.98,144.9,23.83]
[1727188777324,3.4487,144.98,144.9,27.27634777]
[1727188777521,3.4484,144.99,144.94,3.4494]
[1727188777830,23.83,145.03,144.92,23.83]
[1727188778026,23.83,145.05,144.93,3.49057505]
[1727188778227,23.83,145.05,144.93,4.87117505]
[1727188778829,27.2284454,145.05,144.93,1.3806]
[1727188779024,23.83,145.03,144.93,1.3806]
[1727188779528,3.4484,144.99,144.94,3.4494]
[1727188779722,3.4484,144.99,144.93,1.3806]
[1727188779723,23.83,145.03,144.93,1.3806]
[1727188780533,23.83,145.05,144.93,25.2106]
[1727188780742,23.83,145.05,144.95,23.83]
[1727188781223,23.83,145.08,144.97,23.83]
[1727188781734,3.4465,145.07,145.01,3.4477]
[1727188782133,3.4465,145.07,145.01,3.4476]
[1727188782324,3.44282658,145.11,144.98,2.6619]
[1727188782527,23.83,145.09,144.98,2.6619]
[1727188782831,3.4471,145.04,144.98,2.6619]
[1727188783219,3.4471,145.04,144.99,3.4482]
[1727188783425,3.4471,145.04,144.98,2.6619]
[1727188784021,3.47698571,145.1,144.98,2.6619]
[1727188784022,3.447,145.05,144.98,2.6619]
[1727188784524,23.83,145.09,144.98,2.6619]
[1727188784730,23.83,145.04,144.93,1.3806]
[1727188784924,23.83,145.04,144.94,1.3404]
[1727188785125,23.83,145.06,144.97,3.4486]
[1727188785326,23.83,145.06,144.94,1.3404]
[1727188785721,3.4477,145.02,144.97,3.4487]
[1727188785925,23.83,145.05,144.94,25.1704]
[1727188786131,23.83,145.07,144.94,25.1704]
[1727188786333,3.4472,145.04,144.99,3.4481]
[1727188786534,3.4472,145.04,144.96,23.83]
[1727188786828,23.83,145.07,144.96,23.83]
[1727188787024,3.46854304,145.09,144.79,69.38083138]
[1727188787025,23.83,145.0,144.79,69.38083138]
[1727188787226,23.83,144.98,144.88,2.7697]
[1727188787643,23.83,144.96,144.83,23.83]
[1727188787828,3.4505,144.9,144.85,3.4515]
[1727188788029,3.52443007,144.95,144.83,26.6389]
[1727188788431,23.83,144.96,144.83,26.6389]
[1727188788938,27.31784667,144.96,144.83,26.6389]
[1727188789138,23.83,144.94,144.83,26.6389]
[1727188789738,3.4505,144.9,144.85,3.4514]
[1727188790133,23.83,144.94,144.84,3.4517]
[1727188790337,23.83,144.94,144.83,26.6389]
[1727188790338,23.83,144.94,144.83,2.8089]
[1727188790726,3.451,144.88,144.83,4.8667]
[1727188790927,23.83,144.91,144.83,1.4147]
[1727188791132,3.4509,144.89,144.84,3.4517]
[1727188791335,23.83,144.94,144.83,1.4147]
[1727188791740,23.83,144.94,144.85,3.4514]
[1727188792038,27.32239934,144.94,144.83,1.4147]
[1727188792238,3.4507,144.89,144.83,1.4147]
[1727188792439,23.83,144.89,144.8,1.3336]
[1727188792836,3.4513,144.87,144.82,3.4523]
[1727188793033,23.83,144.89,144.82,3.4523]
[1727188793742,23.83,144.92,144.84,3.4518]
[1727188794131,23.83,144.92,144.8,25.1636]
[1727188794539,3.451,144.88,144.8,25.1636]
[1727188794842,3.451,144.88,144.83,3.452]
[1727188795549,3.451,144.88,144.84,3.4518]
[1727188795731,23.83,144.94,144.83,23.83]
[1727188795934,23.83,144.94,144.85,3.4515]
[1727188796630,3.4505,144.9,144.86,3.4514]
[1727188797839,23.83,144.94,144.83,23.83]
[1727188798237,23.83,144.94,144.81,23.83]
[1727188798639,3.4506,144.9,144.85,3.4516]
[1727188799044,23.83,144.94,144.85,3.4516]
[1727188799442,3.4508,144.89,144.84,3.4518]
[1727188799946,3.4505,144.9,144.85,3.4514]
[1727188800154,3.4505,144.9,144.82,2.8132]
[1727188800344,23.83,144.92,144.82,2.8132]
[1727188800544,23.83,144.92,144.85,3.4516]
[1727188800545,3.4506,144.9,144.85,3.4516]
[1727188800845,23.83,144.92,144.82,2.8132]
[1727188801146,80.91921188,144.96,144.83,23.83]
[1727188801147,104.74921188,144.96,144.83,23.83]
[1727188802045,104.74921188,144.96,144.85,23.83]
[1727188802246,104.74921188,144.96,144.82,2.8132]
[1727188802247,23.83,144.99,144.88,23.83]
[1727188802449,23.83,145.01,144.9,23.83]
[1727188802640,3.4494,144.95,144.9,3.4503]
[1727188802944,23.83,144.99,144.89,4.1132]
[1727188803254,23.83,145.01,144.93,3.4497]
[1727188803642,3.4486,144.98,144.93,3.4497]
[1727188803840,3.4486,144.98,144.89,27.9432]
[1727188804140,23.83,145.01,144.89,27.9432]
[1727188804141,3.4485,144.99,144.89,27.9432]
[1727188804341,23.83,145.01,144.89,27.9432]
[1727188804745,27.29241343,145.01,144.89,27.9432]
[1727188804945,23.83,144.98,144.89,4.1132]
[1727188805139,23.83,144.98,144.89,2.7629]
[1727188805647,27.29413895,144.98,144.89,6.2134]
[1727188805847,3.4497,144.93,144.89,2.7629]
[1727188806050,27.29413895,144.98,144.89,6.2135]
[1727188806349,27.29413895,144.98,144.89,2.7629]
[1727188806548,23.83,144.95,144.86,1.365]
[1727188807250,23.83,144.95,144.82,23.83]
[1727188807448,23.83,144.9,144.8,25.195]
[1727188807661,23.83,144.9,144.8,1.365]
[1727188807851,23.83,144.9,144.82,3.4521]
[1727188808151,23.83,144.9,144.8,1.365]
[1727188808152,3.451,144.88,144.8,1.365]
[1727188808343,3.451,144.88,144.82,3.4522]
[1727188808739,3.451,144.88,144.8,1.365]
[1727188808944,3.451,144.88,144.82,3.4522]
[1727188809149,3.451,144.88,144.8,1.365]
[1727188809344,23.83,144.9,144.8,1.365]
[1727188810038,3.4516,144.86,144.81,3.4525]
[1727188810242,23.83,144.9,144.81,3.4525]
[1727188810437,23.83,144.9,144.8,1.365]
[1727188810641,3.4507,144.89,144.84,3.4517]
[1727188810838,23.83,144.92,144.8,25.195]
[1727188811043,3.4511,144.88,144.82,3.4522]
[1727188811253,27.2462214,144.92,144.8,1.365]
[1727188811750,3.4511,144.88,144.8,1.365]
[1727188812651,3.4511,144.88,144.82,3.4522]
[1727188812853,23.83,144.9,144.8,1.365]
[1727188813251,23.83,144.92,144.8,1.365]
[1727188813452,23.83,144.92,144.8,25.195]
[1727188813656,27.36709075,144.92,144.8,25.195]
[1727188813856,3.4512,144.87,144.82,3.4522]
[1727188814060,3.4512,144.87,144.8,25.195]
[1727188814061,23.83,144.9,144.8,1.365]
[1727188814350,3.4514,144.86,144.81,3.4524]
[1727188814752,3.4514,144.86,144.71,183.00347223]
[1727188814753,23.83,144.87,144.75,23.83]
[1727188814950,23.83,144.82,144.72,4.1874]
[1727188815345,3.4534,144.78,144.73,3.4543]
[1727188815554,23.83,144.8,144.68,23.83]
[1727188815765,23.83,144.78,144.66,26.6226]
[1727188816053,3.52914767,144.82,144.66,26.6226]
[1727188816054,23.83,144.76,144.66,4.1777]
[1727188816963,3.4547,144.73,144.67,3.4558]
[1727188817855,3.4543,144.74,144.66,4.1777]
[1727188819148,3.4543,144.74,144.69,3.4554]
[1727188819454,23.83,144.76,144.66,4.1777]
[1727188819852,23.83,144.74,144.58,82.88]
[1727188820049,23.83,144.74,144.6,23.83]
[1727188820250,23.83,144.74,144.65,3.4562]
[1727188820447,23.83,144.72,144.59,4.1399]
[1727188820759,23.83,144.7,144.59,4.1399]
[1727188820957,3.4567,144.64,144.59,4.1399]
[1727188821158,23.83,144.67,144.56,23.83]
[1727188821465,23.83,144.67,144.54,3.39681991]
[1727188821757,23.83,144.65,144.54,23.83]
[1727188821964,3.39612858,144.7,144.54,23.83]
[1727188822165,23.83,144.67,144.56,23.83]
[1727188822673,3.4562,144.66,144.56,23.83]
[1727188822861,23.83,144.69,144.56,23.83]
[1727188823054,3.4557,144.68,144.59,23.83]
[1727188823258,27.35136891,144.71,144.59,23.83]
[1727188823457,23.83,144.69,144.61,3.4572]
[1727188823848,3.4557,144.68,144.56,23.83]
[1727188824054,23.83,144.69,144.59,23.83]
[1727188824352,23.83,144.69,144.6,1.3446]
[1727188824756,23.83,144.71,144.6,1.3446]
[1727188824962,23.83,144.71,144.6,2.6481]
[1727188825360,3.4557,144.68,144.63,3.4567]
[1727188826465,23.83,144.74,144.61,23.83]
[1727188826664,23.83,144.74,144.61,25.2527]
[1727188826958,23.83,144.71,144.61,1.4227]
[1727188827162,27.23412285,144.71,144.6,2.6481]
[1727188827357,3.40412285,144.71,144.6,2.6481]
[1727188827550,23.83,144.69,144.6,2.6481]
[1727188827754,27.35621748,144.71,144.6,2.6481]
[1727188827957,23.83,144.71,144.6,2.6481]
[1727188828160,23.83,144.71,144.61,1.4227]
[1727188828666,3.4553,144.7,144.61,1.4227]
[1727188828963,23.83,144.73,144.61,25.2527]
[1727188829166,3.4551,144.71,144.66,3.4561]
[1727188829370,23.83,144.74,144.61,25.2527]
[1727188829559,23.83,144.74,144.64,23.83]
[1727188829755,23.83,144.76,144.64,23.83]
[1727188830060,23.83,144.77,144.66,23.83]
[1727188830463,23.83,144.77,144.64,23.83]
[1727188830853,3.4545,144.73,144.68,3.4555]
[1727188831057,23.83,144.77,144.66,23.83]
[1727188831266,23.83,144.77,144.67,1.3467]
[1727188831758,23.83,144.75,144.67,1.3467]
[1727188831964,23.83,144.75,144.62,25.1767]
[1727188832367,23.83,144.72,144.62,25.1767]
[1727188832666,3.4554,144.7,144.64,3.4565]
[1727188832864,3.4554,144.7,144.62,25.1767]
[1727188833067,3.4558,144.68,144.62,4.8037]
[1727188833666,3.4558,144.68,144.61,1.4227]
[1727188833667,23.83,144.7,144.6,1.3035]
[1727188833870,23.83,144.67,144.6,1.3035]
[1727188834269,23.83,144.7,144.63,3.4569]
[1727188834565,23.83,144.67,144.53,1.441]
[1727188834774,23.83,144.67,144.55,23.83]
[1727188834965,23.83,144.7,144.55,23.83]
[1727188835367,3.4562,144.66,144.61,3.4573]
[1727188835774,23.83,144.7,144.58,23.83]
[1727188836167,3.456,144.67,144.58,23.83]
[1727188836370,23.83,144.74,144.62,23.83]
[1727188836672,3.4548,144.72,144.67,3.4557]
[1727188836859,23.83,144.74,144.63,4.1012]
[1727188837868,23.83,144.74,144.66,3.4561]
[1727188838165,23.83,144.74,144.63,4.1012]
[1727188838166,23.83,144.72,144.63,4.1012]
[1727188838370,23.83,144.72,144.64,3.4565]
[1727188838371,3.4555,144.69,144.64,3.4565]
[1727188838875,23.83,144.72,144.63,7.5579]
[1727188839167,23.83,144.72,144.63,3.4567]
[1727188839368,23.83,144.72,144.58,23.83]
[1727188839677,23.83,144.72,144.57,4.1412]
[1727188839678,23.83,144.72,144.61,23.83]
[1727188839968,23.83,144.72,144.67,3.4557]
[1727188839969,3.4548,144.72,144.67,3.4557]
[1727188840178,23.83,144.74,144.61,27.20379813]
[1727188840370,23.83,144.74,144.63,23.83]
[1727188840569,23.83,144.74,144.64,4.1896]
[1727188841268,3.4549,144.72,144.67,3.4558]
[1727188841664,23.83,144.74,144.64,4.1896]
[1727188842275,23.83,144.72,144.64,4.1896]
[1727188842575,23.83,144.72,144.59,23.83]
[1727188842778,3.4557,144.69,144.64,3.4564]
[1727188843572,3.4557,144.69,144.65,3.4564]
[1727188844075,3.4552,144.71,144.67,3.4559]
[1727188844267,23.83,144.74,144.61,23.83]
[1727188844679,3.39798693,144.76,144.63,23.83]
[1727188844878,23.83,144.77,144.63,23.83]
[1727188845193,23.83,144.77,144.68,3.4555]
[1727188845194,3.4545,144.73,144.68,3.4555]
[1727188845376,327.74,144.83,144.63,23.83]
[1727188845377,23.83,144.74,144.63,23.83]
[1727188845674,3.456,144.67,144.63,3.4568]
[1727188845883,23.83,144.72,144.6,4.8777476]
[1727188845884,23.83,144.72,144.6,1.3847]
[1727188846069,23.83,144.69,144.6,1.3847]
[1727188846273,3.4561,144.67,144.63,3.4569]
[1727188846483,23.83,144.69,144.63,3.4569]
[1727188846781,3.4561,144.67,144.63,3.4569]
[1727188846976,23.83,144.69,144.6,1.3847]
[1727188847282,23.83,144.67,144.58,2.6069]
[1727188847472,23.83,144.67,144.59,3.4578]
[1727188847673,23.83,144.67,144.58,2.6069]
[1727188848381,3.4565,144.65,144.6,3.4574]
[1727188849780,103.72,144.78,144.6,27.33062257]
[1727188849984,103.72,144.78,144.6,23.83]
[1727188849985,23.83,144.73,144.6,23.83]
[1727188850174,3.4552,144.71,144.66,3.4561]
[1727188850670,23.83,144.73,144.66,3.4561]
[1727188850874,3.4548,144.72,144.62,23.83]
[1727188851070,23.83,144.75,144.63,1.4431]
[1727188851279,3.4551,144.71,144.63,1.4431]
[1727188851887,3.4553,144.7,144.65,3.4562]
[1727188852081,23.83,144.73,144.63,1.4431]
[1727188852588,3.4553,144.7,144.65,3.4564]
[1727188852787,23.83,144.73,144.63,1.4431]
[1727188853088,3.4552,144.7,144.65,3.4564]
[1727188853581,3.52212354,144.79,144.63,1.4431]
[1727188853786,23.83,144.78,144.67,23.83]
[1727188854589,23.83,144.78,144.7,3.4551]
[1727188855189,3.4543,144.74,144.7,3.4552]
[1727188855485,23.83,144.78,144.66,2.7387]
[1727188855685,3.4542,144.75,144.66,2.7387]
[1727188855888,23.83,144.78,144.66,2.7387]
[1727188856279,23.83,144.78,144.7,3.455]
[1727188856280,3.4541,144.75,144.7,3.455]
[1727188857576,23.83,144.78,144.66,2.7387]
[1727188857885,23.83,144.78,144.71,3.4548]
[1727188858093,3.4538,144.76,144.71,3.4548]
[1727188858283,23.83,144.78,144.71,3.4548]
[1727188858588,23.83,144.78,144.7,3.4551]
[1727188858779,23.83,144.78,144.66,2.7387]
[1727188858780,23.83,144.76,144.66,2.7387]
[1727188858980,23.83,144.76,144.68,3.4555]
[1727188859488,3.4549,144.72,144.67,3.4557]
[1727188859688,23.83,144.75,144.67,3.4557]
[1727188860296,23.83,144.72,144.63,1.4431]
[1727188860685,3.42090707,144.72,144.63,1.4431]
[1727188860986,23.83,144.71,144.63,1.4431]
[1727188861192,23.83,144.71,144.65,3.4563]
[1727188861193,3.4553,144.7,144.65,3.4563]
[1727188861391,23.83,144.71,144.65,3.4563]
[1727188862388,23.83,144.71,144.63,1.4431]
[1727188862707,23.83,144.73,144.63,1.4431]
[1727188862895,23.83,144.77,144.7,3.4552]
[1727188863077,27.21705924,144.77,144.7,3.4552]
[1727188863283,27.21705924,144.77,144.65,23.83]
[1727188863484,27.21705924,144.77,144.69,3.4553]
[1727188863687,23.83,144.77,144.69,3.4553]
[1727188863884,3.4543,144.74,144.65,23.83]
[1727188864091,23.83,144.77,144.7,3.4552]
[1727188864398,23.83,144.77,144.67,23.83]
[1727188864596,23.83,144.8,144.68,2.6825]
[1727188864783,23.83,144.8,144.68,6.18968927]
[1727188864979,3.4532,144.79,144.73,3.4543]
[1727188865182,23.83,144.8,144.73,3.4543]
[1727188865379,23.83,144.78,144.68,6.18968927]
[1727188865594,23.83,144.78,144.68,2.6825]
[1727188865987,23.83,144.75,144.68,2.6825]
[1727188866182,23.83,144.73,144.63,1.4431]
[1727188866386,23.83,144.73,144.64,2.6431]
[1727188866892,3.4554,144.7,144.65,3.4562]
[1727188867292,3.4554,144.7,144.64,2.6431]
[1727188867489,3.4554,144.7,144.65,3.4563]
[1727188867699,3.455,144.71,144.64,2.6431]
[1727188867879,23.83,144.73,144.64,2.6431]
[1727188868084,23.83,144.73,144.67,3.4559]
[1727188868379,23.83,144.75,144.64,2.6431]
[1727188868579,23.83,144.73,144.64,2.6431]
[1727188868779,3.4551,144.71,144.66,3.4561]
[1727188868995,23.83,144.73,144.64,2.6431]
[1727188869493,3.4549,144.72,144.67,3.4559]
[1727188869882,3.4546,144.73,144.68,3.4555]
[1727188870280,80.9966835,144.82,144.68,23.83]
[1727188870481,3.4526,144.81,144.7,23.83]
[1727188870784,23.83,144.84,144.71,4.1041]
[1727188870982,23.83,144.84,144.72,23.83]
[1727188871486,23.83,144.84,144.71,4.1041]
[1727188871693,23.83,144.84,144.72,23.83]
[1727188872094,3.4532,144.79,144.72,23.83]
[1727188872288,3.4532,144.79,144.71,42.9241]
[1727188872484,3.4529,144.8,144.75,3.4538]
[1727188872886,38.82,144.83,144.75,3.4538]
[1727188873085,3.453,144.8,144.75,3.4538]
[1727188874896,42.31872069,144.85,144.73,38.82]
[1727188875092,38.82,144.85,144.73,38.82]
[1727188875485,38.82,144.85,144.71,4.1041]
[1727188875486,3.45518623,144.85,144.71,4.1041]
[1727188875796,38.82,144.86,144.73,38.82]
[1727188875992,38.82,144.83,144.71,42.9241]
[1727188876489,38.82,144.88,144.71,4.1041]
[1727188876490,38.82,144.81,144.71,4.1041]
[1727188877191,38.82,144.81,144.73,3.4544]
[1727188877192,42.23337848,144.81,144.73,3.4544]
[1727188877599,38.82,144.78,144.64,82.94]
[1727188877792,38.82,144.76,144.65,4.1134]
[1727188878190,38.82,144.76,144.69,3.4553]
[1727188878402,38.82,144.76,144.65,4.1134]
[1727188878895,3.4546,144.73,144.68,3.4555]
[1727188879098,38.82,144.78,144.66,38.82]
[1727188879291,3.4538,144.76,144.71,3.4548]
[1727188879500,38.82,144.78,144.66,38.82]
[1727188880092,38.82,144.76,144.65,4.1134]
[1727188880694,38.82,144.74,144.65,4.1134]
[1727188881386,38.82,144.71,144.65,2.7155]
[1727188881590,38.82,144.71,144.61,1.3116]
[1727188881801,3.44154048,144.72,144.61,1.3116]
[1727188882093,38.82,144.68,144.61,1.3116]
[1727188882299,3.4561,144.67,144.62,3.457]
[1727188882495,38.82,144.68,144.61,1.3116]
[1727188882711,38.82,144.71,144.61,1.3116]
[1727188882906,3.4554,144.7,144.65,3.4563]
[1727188883400,3.4552,144.71,144.66,3.4561]
[1727188883704,38.82,144.73,144.61,1.3116]
[1727188883995,3.4554,144.7,144.61,1.3116]
[1727188884700,38.82,144.73,144.61,1.3116]
[1727188885095,3.4549,144.72,144.67,3.4557]
[1727188885497,3.4549,144.72,144.61,1.3116]
[1727188885697,3.4546,144.73,144.68,3.4555]
[1727188885901,38.82,144.76,144.64,38.82]
[1727188886403,38.82,144.76,144.66,3.4561]
[1727188886702,38.82,144.73,144.61,40.1316]
[1727188886889,3.4556,144.69,144.64,3.4564]
[1727188887096,38.82,144.73,144.61,40.1316]
[1727188887399,3.4549,144.72,144.61,40.1316]
[1727188887600,38.82,144.73,144.61,40.1316]
[1727188887999,3.4551,144.71,144.63,38.82]
[1727188888393,38.82,144.73,144.63,38.82]
[1727188888695,3.455,144.71,144.63,38.82]
[1727188889206,3.455,144.71,144.66,3.4559]
[1727188889398,3.455,144.71,144.63,38.82]
[1727188889703,3.455,144.71,144.66,3.4559]
[1727188889904,3.4553,144.7,144.66,3.4559]
[1727188890102,38.82,144.73,144.61,40.1316]
[1727188890496,38.82,144.7,144.61,1.3116]
[1727188890900,38.82,144.68,144.63,3.4569]
[1727188891107,38.82,144.68,144.61,1.3116]
[1727188891305,38.82,144.71,144.61,1.3116]
[1727188891499,38.82,144.73,144.61,40.1316]
[1727188892195,3.4556,144.69,144.61,40.1316]
[1727188892399,38.82,144.73,144.61,40.1316]
[1727188892800,3.4562,144.66,144.62,3.4571]
[1727188893109,42.24185695,144.71,144.61,1.3116]
[1727188894409,3.4561,144.67,144.62,3.457]
[1727188895109,3.4558,144.68,144.61,1.3116]
[1727188895311,23.9,144.7,144.61,1.3116]
[1727188895312,163.95682302,144.82,144.65,23.9]
[1727188895513,23.9,144.78,144.65,23.9]
[1727188895712,3.4543,144.74,144.7,3.4551]
[1727188896404,3.4542,144.75,144.7,3.4551]
[1727188896604,3.49287242,144.77,144.7,3.4551]
[1727188896915,3.4542,144.75,144.7,3.4551]
[1727188897114,23.9,144.78,144.69,3.4553]
[1727188897507,3.4543,144.74,144.69,3.4554]
[1727188897719,3.4543,144.74,144.67,1.4159]
[1727188897911,23.9,144.78,144.67,1.4159]
[1727188898114,3.4541,144.75,144.67,1.4159]
[1727188898415,3.4541,144.75,144.7,3.455]
[1727188899609,3.4532,144.79,144.74,3.4542]
[1727188899808,42.26319663,144.79,144.67,4.94662619]
[1727188900013,38.85,144.77,144.67,1.4159]
[1727188900203,38.85,144.74,144.67,1.4159]
[1727188900406,38.85,144.74,144.66,1.3649]
[1727188900602,38.85,144.72,144.62,1.3676]
[1727188901713,38.85,144.75,144.62,1.3676]
[1727188901917,38.85,144.79,144.65,38.85]
[1727188902115,3.47206858,144.78,144.65,38.85]
[1727188903014,3.4544,144.74,144.69,3.4553]
[1727188903412,3.4544,144.74,144.65,38.85]
[1727188903413,38.85,144.79,144.67,3.46895741]
[1727188903723,38.85,144.79,144.65,38.85]
[1727188904419,3.454,144.75,144.7,3.455]
[1727188906309,42.37865933,144.79,144.67,3.39694392]
[1727188906508,42.37865933,144.79,144.65,38.85]
[1727188906707,38.85,144.77,144.65,38.85]
[1727188907222,38.85,144.74,144.62,1.3676]
[1727188907416,38.85,144.68,144.62,1.3676]
[1727188907920,38.85,144.63,144.51,3.42758382]
[1727188908221,38.85,144.63,144.52,4.2335]
[1727188908423,38.85,144.63,144.52,7.68714032]
[1727188908811,38.85,144.66,144.53,38.85]
[1727188909016,3.4562,144.66,144.55,38.85]
[1727188909325,38.85,144.68,144.55,38.85]
[1727188909616,38.85,144.68,144.57,38.85]
[1727188909824,38.85,144.71,144.6,38.85]
[1727188910119,121.81,144.73,144.61,2.766]
[1727188910415,38.85,144.73,144.62,38.85]
[1727188910616,3.4547,144.72,144.62,38.85]
[1727188910919,82.96,144.81,144.62,38.85]
[1727188910920,38.85,144.76,144.62,38.85]
[1727188911122,3.4546,144.73,144.66,3.4561]
[1727188911422,38.85,144.76,144.62,38.85]
[1727188912219,3.4545,144.73,144.67,3.4558]
[1727188913127,38.85,144.79,144.67,38.85]
[1727188913326,42.33924842,144.79,144.67,38.85]
[1727188914022,38.85,144.79,144.67,38.85]
[1727188914229,38.85,144.79,144.68,2.6704]
[1727188914611,38.85,144.79,144.7,3.4551]
[1727188915223,38.85,144.79,144.68,2.6704]
[1727188915834,38.85,144.79,144.69,3.4553]
[1727188915835,3.4542,144.75,144.69,3.4553]
[1727188916215,3.4542,144.75,144.68,2.6704]
[1727188916519,3.4538,144.76,144.68,2.6704]
[1727188916827,38.85,144.79,144.68,2.6704]
[1727188917022,3.4542,144.75,144.7,3.4552]
[1727188917227,38.85,144.79,144.68,2.6704]
[1727188917528,38.85,144.77,144.68,2.6704]
[1727188917722,3.4546,144.73,144.68,6.1261]
[1727188917923,38.85,144.77,144.68,6.1261]
[1727188917924,38.85,144.79,144.68,2.6704]
[1727188918233,3.4539,144.76,144.71,3.4549]
[1727188918418,38.85,144.79,144.68,2.6704]
[1727188918833,3.4543,144.74,144.69,3.4554]
[1727188919318,38.85,144.79,144.68,2.6704]
[1727188920021,3.4542,144.75,144.7,3.4551]
[1727188920735,38.85,144.79,144.68,2.6704]
[1727188921030,38.85,144.79,144.68,6.10224259]
[1727188921230,3.4539,144.76,144.71,3.4548]
[1727188921523,38.85,144.79,144.67,38.85]
[1727188921730,38.85,144.75,144.66,3.4561]
[1727188921927,38.85,144.75,144.62,2.7846]
[1727188922131,38.85,144.75,144.63,38.85]
[1727188922327,38.85,144.72,144.62,2.7846]
[1727188922523,42.30949087,144.72,144.62,2.7846]
[1727188922728,38.85,144.74,144.62,2.7846]
[1727188922925,38.85,144.74,144.63,38.85]
[1727188923532,3.37310663,144.73,144.63,38.85]
[1727188923724,38.85,144.74,144.63,38.85]
[1727188924030,38.85,144.79,144.62,2.7846]
[1727188924031,3.4558,144.68,144.62,2.7846]
[1727188924229,38.85,144.72,144.62,2.7846]
[1727188924230,42.26148454,144.72,144.62,2.7846]
[1727188924428,38.85,144.7,144.59,38.85]
[1727188924624,38.85,144.7,144.57,2.8494]
[1727188924933,38.85,144.7,144.61,3.4572]
[1727188925431,3.4569,144.63,144.57,2.8494]
[1727188925636,38.85,144.67,144.57,2.8494]
[1727188926132,3.41148454,144.72,144.54,1.4153]
[1727188926432,38.85,144.71,144.59,38.85]
[1727188926634,3.46257567,144.7,144.59,38.85]
[1727188927025,38.85,144.71,144.59,38.85]
[1727188927526,38.85,144.74,144.61,38.85]
[1727188927735,42.30565882,144.74,144.61,42.35131004]
[1727188927928,42.30565882,144.74,144.62,4.1955]
[1727188928227,3.455,144.71,144.66,3.456]